Cogmind - Beta 10.1 @@@ ROGUE MODE // 2020.10.28 @ 10:34:55 Player: Atherys Result: Self-destructed Performance ------------- Evolutions (0) 0 Regions Visited (4) 800 Robots Destroyed (22) 110 Value Destroyed (446) 446 Prototype IDs (0) 0 Alien Tech Used (0) 0 Bonus (-138) -138 TOTAL SCORE: 1218 Bonus ------- Friendly Fire -138 Cogmind --------- Core Integrity 15/250 Matter 31/300 Energy 100/100 System Corruption 10% Temperature Cool (20) Movement Core (1350) Ox26 Location -9/Mines Parts ------- > --- POWER (1) -------- (None) > --- PROPULSION (2) --- (None) > --- UTILITY (2) ------ Humpback > --- WEAPON (2) ------- (None) > --- INVENTORY (24) --- Fission Core Fission Core Improved Heat Sink Terrain Scanner EM Pulse Gun Medium Laser Peak State ------------ > --- POWER ------------ (None) > --- PROPULSION ------- Aluminum Leg > --- UTILITY ---------- Improved Heat Sink Terrain Scanner > --- WEAPON ----------- EM Pulse Gun Light Cannon > --- INVENTORY -------- Fission Core Fission Core Medium Laser Grenade Launcher [Rating: 8] Favorites ----------- Power Ion Engine Engine Ion Engine Propulsion Aluminum Leg Leg Aluminum Leg Wheel Compact Wheel Utility Humpback Device Terrain Scanner Storage Humpback Weapon EM Pulse Gun Energy Gun EM Pulse Gun Ballistic Gun Light Assault Rifle Ballistic Cannon Light Cannon Launcher Grenade Launcher Build | -11 -10 -10 -10 -9 ------- Run | Scr Mat Min Exi Min Slots Evolved . | . . . . . Power . | . . . . . Propulsion . | . . . . . Utility . | . . . . . Weapon . | . . . . . Parts Attached 13 | 5 3 3 1 1 Power 1 | 1 . . . . Engine 1 | 1 . . . . Core . | . . . . . Reactor . | . . . . . Propulsion 3 | 2 . 1 . . Treads . | . . . . . Leg 1 | . . 1 . . Wheel 2 | 2 . . . . Hover . | . . . . . Flight . | . . . . . Utility 3 | . 1 1 1 . Device 2 | . 1 1 . . Storage 1 | . . . 1 . Processor . | . . . . . Hackware . | . . . . . Protection . | . . . . . Artifact . | . . . . . Weapon 6 | 2 2 1 . 1 Energy Gun 2 | 1 . 1 . . Energy Cannon . | . . . . . Ballistic Gun 1 | 1 . . . . Ballistic Cannon 1 | . 1 . . . Launcher 2 | . 1 . . 1 Special Weapon . | . . . . . Impact Weapon . | . . . . . Slashing Weapon . | . . . . . Piercing Weapon . | . . . . . Special Melee Weapon . | . . . . . Unidentified Prototypes . | . . . . . Parts Lost 7 | . 2 2 . 3 Power 1 | . . 1 . . Propulsion 3 | . 1 1 . 1 Utility . | . . . . . Weapon 3 | . 1 . . 2 Highest Loss Streak 3 | . 2 1 . 3 Average Slot Usage (%) 62 | . 78 65 58 57 Engine 3 | . 14 7 . . Leg 11 | . . 7 14 14 Wheel 3 | . 24 1 . . Device 7 | . 12 20 3 . Storage 8 | . . . 12 14 Energy Gun 12 | . 12 6 14 10 Ballistic Gun 1 | . 10 . . . Ballistic Cannon 12 | . 1 14 14 14 Launcher 1 | . 1 7 . 3 Naked Turns . | . . . . . Heaviest Build 85 | 8 12 12 85 85 Greatest Support 26 | 26 26 16 10 10 Greatest Overweight (x) 8 | . . 3 8 8 Average Overweight (x) 3 | . . . 5 8 Largest Inventory Capacity 24 | 4 4 4 24 24 Average Capacity 16 | 4 4 4 21 24 Most Carried 6 | . 3 4 6 6 Average Carried 4 | . 2 2 5 6 Final Capacity 24 | 4 4 4 24 24 Final Carried 6 | . 2 3 6 6 Class Distribution -------------------- 60% | Hauler-Mutant 39% | Mutant Dominant Class ---------------- Mutant | -10/Materials Mutant | -10/Mines Hauler-Mutant | -10/Exiles Hauler-Mutant | -9/Mines Resources | -11 -10 -10 -10 -9 ----------- Run | Scr Mat Min Exi Min Matter Collected 251 | 60 41 150 . . Remotely . | . . . . . Salvage Created 584 | 100 212 212 . 60 Parts 37 | . 13 19 . 5 Haulers Intercepted . | . . . . . Recyclers Shooed . | . . . . . Parts Field Recycled . | . . . . . Retrieved Matter . | . . . . . Parts Self-Destructed . | . . . . . Prevented . | . . . . . Kills | -11 -10 -10 -10 -9 ------- Run | Scr Mat Min Exi Min Combat Hostiles Destroyed 13 | . 4 7 . 2 Guns 2 | . 2 . . . Cannons 4 | . 2 2 . . AOE 7 | . . 5 . 2 Classes Destroyed 8 | 1 3 2 . 2 Builder 3 | . . 3 . . Recycler 3 | 1 1 1 . . Operator 1 | . 1 . . . Watcher 1 | . 1 . . . Swarmer 3 | . . 3 . . Grunt 8 | . 4 4 . . Assembled 2 | . . . . 2 Guerrilla 1 | . . . . 1 Best Kill Streak 5 | 1 4 5 . 2 Combat Bots Only 3 | . 2 3 . 2 Max Kills in Single Turn 3 | 1 1 3 . 2 Gunslinging . | . . . . . Exploded 3 | . . 3 . 2 Melee . | . . . . . Uniques/NPCs Destroyed . | . . . . . Combat | -11 -10 -10 -10 -9 -------- Run | Scr Mat Min Exi Min Damage Taken 942 | . 294 192 . 456 Core 235 | . 41 47 . 147 Absorbed by Shields . | . . . . . Core Remaining (%) 100 | 100 . . . . Volleys Fired 45 | 8 26 9 . 2 Largest 2 | 1 2 2 . 2 Hottest 75 | 40 75 65 . 65 Shots Fired 61 | 8 31 18 . 4 Gun 25 | 8 17 . . . Cannon 21 | . 10 9 . 2 Launcher 15 | . 4 9 . 2 Special . | . . . . . Kinetic 21 | . 10 9 . 2 Thermal . | . . . . . Explosive 15 | . 4 9 . 2 Electromagnetic 25 | 8 17 . . . Robot Hit Streak 9 | 7 9 4 . 3 Robot Miss Streak 4 | 1 4 1 . 3 Penetration Max . | . . . . . Secondary Targets . | . . . . . Shots Hit Robots 36 | 7 18 10 . 1 Core Hits 33 | . 10 16 . 7 Critical Hits . | . . . . . Critical Kills . | . . . . . Critical Parts Destroyed . | . . . . . Melee Attacks . | . . . . . Impact . | . . . . . Slashing . | . . . . . Piercing . | . . . . . Sneak Attacks . | . . . . . Combat Hostiles . | . . . . . Follow-up Attacks . | . . . . . Damage Inflicted 1484 | 89 450 616 . 329 Guns 214 | 89 125 . . . Cannons 238 | . 132 89 . 17 Explosions 1028 | . 193 523 . 312 Melee . | . . . . . Ramming 4 | . . 4 . . Kinetic 238 | . 132 89 . 17 Thermal . | . . . . . Explosive 1028 | . 193 523 . 312 Electromagnetic 214 | 89 125 . . . Impact . | . . . . . Slashing . | . . . . . Piercing . | . . . . . Highest Corruption . | . . . . . Average Corruption . | . . . . . Corruption Purged . | . . . . . Overload Shots . | . . . . . Overflow Damage 54 | . 10 37 . 7 Projectiles 17 | . 10 . . 7 Explosions 37 | . . 37 . . Melee . | . . . . . Knockbacks 3 | . . 2 . 1 Impact . | . . . . . Kinetic 3 | . . 2 . 1 Secondary . | . . . . . Self-Inflicted Damage 61 | . . 5 . 56 Shots 3 | . . 1 . 2 Rammed 3 | . . 3 . . Targets Rammed 3 | . . 3 . . Kicked . | . . . . . Crushed . | . . . . . Highest Temperature 101 | . 101 45 . 20 Average Temperature 31 | . 40 16 . 12 Received Heat Transfer 253 | . 135 78 . 40 Siege Activations . | . . . . . Robots Corrupted 1 | 1 . . . . Combat Hostiles . | . . . . . Parts Fried 2 | 1 1 . . . Impact Corruptions . | . . . . . Robots Melted . | . . . . . Combat Hostiles . | . . . . . Parts Melted . | . . . . . Heat Transferred . | . . . . . Parts Sabotaged . | . . . . . Parts Stolen . | . . . . . Parts Stripped . | . . . . . Power Chain Reactions . | . . . . . Missiles Intercepted . | . . . . . Alert | -11 -10 -10 -10 -9 ------- Run | Scr Mat Min Exi Min Peak Influence 252 | 5 211 252 . . Initial 82 | . 3 82 . . Average 106 | 1 58 154 . . Maximum Alert Level 1 | . 1 1 . . Low Security (%) 82 | 100 97 69 . 100 Level 1 17 | . 2 30 . . Level 2 . | . . . . . Level 3 . | . . . . . Level 4 . | . . . . . Level 5 . | . . . . . High Security . | . . . . . Max Security . | . . . . . Squads Dispatched 1 | . 1 . . . Investigation . | . . . . . Extermination . | . . . . . Reinforcement 1 | . 1 . . . Assault . | . . . . . Garrison . | . . . . . Intercept . | . . . . . Construction Impeded . | . . . . . Haulers Reinforced . | . . . . . Stealth | -11 -10 -10 -10 -9 --------- Run | Scr Mat Min Exi Min Distress Signals . | . . . . . Communications Jammed . | . . . . . Distress Signals . | . . . . . Times Spotted 27 | . 8 7 . 12 Peak Tracking Total 10 | . 3 3 . 10 Tactical Retreats . | . . . . . Traps | -11 -10 -10 -10 -9 ------- Run | Scr Mat Min Exi Min Traps Triggered . | . . . . . Indirectly . | . . . . . Trap Hack Attempts . | . . . . . Triggered . | . . . . . Disarmed . | . . . . . Reprogrammed . | . . . . . Reused . | . . . . . Traps Extracted . | . . . . . Installed 2 | . . 2 . . Triggered . | . . . . . Machines | -11 -10 -10 -10 -9 ---------- Run | Scr Mat Min Exi Min Machines Disabled 4 | . 4 . . . Max in Single Turn 1 | . 1 . . . Machines Sabotaged . | . . . . . Garrisons Compromised . | . . . . . Overloaded Fab Kills . | . . . . . Fab Network Shutdowns . | . . . . . Hacking | -11 -10 -10 -10 -9 --------- Run | Scr Mat Min Exi Min Machines Accessed 6 | . 2 . 4 . Terminals 2 | . 2 . . . Fabricators . | . . . . . Repair Stations . | . . . . . Recycling Units . | . . . . . Scanalyzers . | . . . . . Garrison Access . | . . . . . Total Hacks 12 | . 8 . 4 . Successful 9 | . 5 . 4 . Failed 3 | . 3 . . . Catastrophic . | . . . . . Database Lockouts . | . . . . . Manual 8 | . 8 . . . Terminals 8 | . 8 . . . Fabricators . | . . . . . Repair Stations . | . . . . . Recycling Units . | . . . . . Scanalyzers . | . . . . . Garrison Access . | . . . . . Terminal Hacks 4 | . . . 4 . Record 4 | . . . 4 . Fabricator Hacks . | . . . . . Repair Station Hacks . | . . . . . Recycling Unit Hacks . | . . . . . Scanalyzer . | . . . . . Garrison Access Hacks . | . . . . . Unauthorized Hacks 5 | . 5 . . . Terminals 5 | . 5 . . . Track 1 | . 1 . . . Assimilate 1 | . 1 . . . Botnet 2 | . 2 . . . Operators 1 | . 1 . . . Fabricators . | . . . . . Repair Stations . | . . . . . Recycling Units . | . . . . . Scanalyzers . | . . . . . Garrison Access . | . . . . . Data Cores Recovered . | . . . . . Used . | . . . . . Hacking Detections 2 | . 2 . . . Full Trace Events . | . . . . . Feedback Events . | . . . . . Feedback Blocked . | . . . . . Robot Schematics Acquired . | . . . . . Robots Built . | . . . . . Matter . | . . . . . Time . | . . . . . Total Robot Build Rating . | . . . . . Part Schematics Acquired . | . . . . . Parts Built . | . . . . . Matter . | . . . . . Time . | . . . . . Total Part Build Rating . | . . . . . Parts Repaired . | . . . . . Time . | . . . . . Parts Recycled . | . . . . . Recycled Matter . | . . . . . Retrieved Matter . | . . . . . Retrieved Components . | . . . . . Parts Scanalyzed . | . . . . . Part Schematics Acquired . | . . . . . Parts Damaged . | . . . . . Bothacking | -11 -10 -10 -10 -9 ------------ Run | Scr Mat Min Exi Min Used RIF Installer . | . . . . . Robots Hacked . | . . . . . Non-combat . | . . . . . Combat . | . . . . . Robot Hacks Applied . | . . . . . Relay Couplers Released . | . . . . . Robots Rewired . | . . . . . Allies Hacked . | . . . . . Hacks Repelled . | . . . . . Allies | -11 -10 -10 -10 -9 -------- Run | Scr Mat Min Exi Min Total Allies . | . . . . . Largest Group . | . . . . . Highest-Rated Group . | . . . . . Highest-Rated Ally . | . . . . . Total Orders . | . . . . . Ally Attacks . | . . . . . Total Damage . | . . . . . Kills . | . . . . . Allies Corrupted . | . . . . . Allies Melted . | . . . . . Intel | -11 -10 -10 -10 -9 ------- Run | Scr Mat Min Exi Min Robot Analysis Total . | . . . . . Derelict Logs Recovered 1 | . . 1 . . Drone Launches . | . . . . . Drone Recoveries . | . . . . . Exploration | -11 -10 -10 -10 -9 ------------- Run | Scr Mat Min Exi Min Turns Passed 2873 | 44 350 519 1922 38 Spaces Moved 1278 | 24 244 342 660 8 Core 88 | 2 . 86 . . Treads . | . . . . . Legs 890 | . . 222 660 8 Wheels 300 | 22 244 34 . . Hover . | . . . . . Flight . | . . . . . Fastest Speed 50 | 50 90 100 120 360 Average Speed 208 | 87 91 139 290 360 Slowest Speed 360 | 100 100 200 360 360 Overloaded Moves . | . . . . . Propulsion Burnouts . | . . . . . Robots Hopped . | . . . . . Cave-ins Triggered 1 | . . . . 1 Exploration Rate (%) 44 | 3 45 76 93 3 Regions Visited 4 Branch Regions 3 Pre-discovered Areas . | . . . . . Known Exits Taken . | . . . . . Unknown Exits Taken 4 | 1 1 1 1 . Scrap Searched 1 | . . 1 . . Spaces Dug . | . . . . . Terrain Destroyed 103 | . 13 69 . 21 Melee . | . . . . . Projectile 1 | . . 1 . . AOE 102 | . 13 68 . 21 Terrain Rammed . | . . . . . Walls Destroyed . | . . . . . Machines Disabled . | . . . . . Actions | -11 -10 -10 -10 -9 --------- Run | Scr Mat Min Exi Min Total 1417 | 36 338 364 667 12 Wait 65 | . 63 1 . 1 Move 1274 | 23 243 341 659 8 Hop . | . . . . . Pick Up 10 | . 3 3 4 . Fast Attach 9 | 5 1 2 1 . Attach 1 | . 1 . . . Detach . | . . . . . Swap 3 | . 1 1 . 1 Drop 5 | . . 2 3 . Fire 45 | 8 26 9 . 2 Melee . | . . . . . Ram 2 | . . 2 . . Kick 1 | . . 1 . . Crush . | . . . . . Escape Stasis . | . . . . . Rewire . | . . . . . Trap 2 | . . 2 . . Miscellaneous . | . . . . . Route ------- -11/Scrapyard -10/Materials (discovered 2 exits: [*Mat] / [*Min]) -10/Mines (discovered 3 exits: [*Mat x2] / *Exi) -10/Exiles (discovered 2 exits: [*Min x2]) -9/Mines History --------- Turn | Location | Event 16 | -11/Scrapyard | Discovered new exit (range 15) 45 | -11/Scrapyard | Entered Materials 203 | -10/Materials | Discovered new exit (range 10) 307 | -10/Materials | Build established: Mutant 389 | -10/Materials | Discovered new exit (range 7) 395 | -10/Materials | Entered Mines 459 | -10/Mines | Discovered new exit (range 12) 521 | -10/Mines | Found a hidden stash of uninstalled traps 761 | -10/Mines | Discovered new exit (range 11) 780 | -10/Mines | YI-UF0 nonchalantly dropped a Grenade Launcher on the ground 882 | -10/Mines | Learned Materials emergency access door positions 908 | -10/Mines | Deemed a non-threat by the Exiles lab entrance 909 | -10/Mines | Discovered new exit (range 5) 914 | -10/Mines | Entered Exiles 914 | -10/Exiles | Found Exiles lab abandoned 953 | -10/Exiles | Discovered new exit (range 14) 1219 | -10/Exiles | Discovered new exit (range 14) 1453 | -10/Exiles | Build established: Hauler-Mutant 2836 | -10/Exiles | Entered Mines 2837 | -9/Mines | Assembled infested the area 2842 | -9/Mines | Assisted by a Guerilla fighting off Assembled 2874 | -9/Mines | Crushed by falling debris 2874 | -9/Mines | Core integrity fell below 50% 2874 | -9/Mines | Core integrity fell below 20% 2874 | -9/Mines | System corruption reached 10% 2874 | -9/Mines | Self-destructed Last Messages --------------- coming from, and they're closing on this area, come on!" 02865_ HV Slug penetrates as-65426. 02865_ as-65426 destroyed. 02865_ HV Slug penetrates as-54983. 02865_ as-54983 suffers critical hit. 02865_ HV Slug penetrates as-68122. 02865_ as-36338 destroyed. 02868_ PG-7S3(h) destroyed. 02868_ Destroyed Asb. F-torch. 02868_ as-63011 knocked back. 02870_ Knocked back. 02871_ as-78016 destroyed. 02871_ as-34913 destroyed. 02874_ The unstable cave ceiling collapses. 02874_ Crushed by falling debris. 02874_ Lgt. Cannon destroyed. 02874_ System corrupted by crushing effect (+5). 02874_ Grenade Launcher destroyed. 02874_ System corrupted by crushing effect (+5). 02874_ Aluminum Leg destroyed. Map ----- +----------------------------------------------------+ | | | | | | | | | | | | | | | | | | | | | | | | | | | ?????????????????????????????????????????????????? | | ?????????????????????????????????????????????????? | | ?????????????????????????????????????????????????? | | ?????????????????????????####????????????????????? | | ????????????????????????## ###??????????????????? | | ???????????????????????## ##?????????????????? | | ??????????????????????## ##????????????????? | | ??????????????????????# #????????????????? | | ??????????????????????# ### #????????????????? | | ??????????????????????## #?????????????????? | | ???????????????????????# a ########???????????? | | ???????????????????????##aa%%a % a #??????????? | | ???????????????????????# @a*!a ## #??????????????? | | ???????????????????????## # # ##?????????????????? | | ????????????????????????###?#????????????????????? | | ?????????????????????????????????????????????????? | | ?????????????????????????????????????????????????? | | ?????????????????????????????????????????????????? | | ?????????????????????????????????????????????????? | | ?????????????????????????????????????????????????? | | ?????????????????????????????????????????????????? | | ?????????????????????????????????????????????????? | | ?????????????????????????????????????????????????? | | ?????????????????????????????????????????????????? | | ?????????????????????????????????????????????????? | | ?????????????????????????????????????????????????? | | ?????????????????????????????????????????????????? | | ?????????????????????????????????????????????????? | | ?????????????????????????????????????????????????? | | ?????????????????????????????????????????????????? | | ?????????????????????????????????????????????????? | | ?????????????????????????????????????????????????? | | ?????????????????????????????????????????????????? | | ?????????????????????????????????????????????????? | | ?????????????????????????????????????????????????? | | ?????????????????????????????????????????????????? | | ?????????????????????????????????????????????????? | +----------------------------------------------------+ Best States ------------- Heat Dissipation 39 Energy Generation 10 Energy Capacity 250 Matter Stores 151 Matter Capacity 300 Sight Range 16 Terrain Scan Range 14 Terrain Scan Density 10 Evasion (%) 42 Item Schematics ----------------- None Robot Schematics ------------------ None Fabricated ------------ Nothing Alien Tech Used ----------------- None Achievements -------------- None Challenges ------------ None Game ------ Seed CloakingFluxApparatus Manual? 0 Play Time 00:14:35 Cumulative 18.1 hours Start 2020.10.28 @ 10:20:06 End 2020.10.28 @ 10:34:55 Sessions 1 Manual Loads 0 Difficulty Rogue Special Mode None Game No. 33 Rogue 33 Adventurer 0 Explorer 0 Win Type - Total 0 Types 0/0/0/0/0/0/0/0/0 Lore% 20 Gallery% 22 Achievement% 19 Wizard Run 0 Options --------- ASCII 0 Keyboard 0 Movement Mouse Keybinds 0 Fullscreen 2 Font 24/Smallcaps Map View 76x50 Tactical HUD 1 Map Filters NONE Filters NONE Steam X RUN: 676f68e8-7dd1-47c9-a6fb-f889a42c5864